Cogmind - Beta 14 @@@ ROGUE MODE // 2025.01.02 @ 12:57:31 Player: TerrahLol Result: Destroyed by G-47 Trooper with Particle Gun Performance ------------- Evolutions (0) 0 Regions Visited (1) 200 Robots Destroyed (17) 85 Value Destroyed (474) 474 Prototype IDs (0) 0 Alien Tech Used (0) 0 Bonus (0) 0 TOTAL SCORE: 759 Bonus ------- None Cogmind --------- Core Integrity 0/250 Matter 255/300 Energy 160/160 System Corruption 0% Temperature Cool (11) Movement Walking (260) Ox2 Location -10/Materials Parts ------- > --- POWER (1) -------- Light Nuclear Core > --- PROPULSION (2) --- Aluminum Leg Aluminum Leg > --- UTILITY (2) ------ High-capacity Storage Unit Signal Interpreter > --- WEAPON (2) ------- Small Laser > --- INVENTORY (20) --- Ion Engine Aluminum Leg Aluminum Leg Aluminum Leg Aluminum Leg Heat Sink Heat Sink Improved Heat Sink Peak State ------------ > --- POWER ------------ Light Ion Engine > --- PROPULSION ------- Aluminum Leg Aluminum Leg > --- UTILITY ---------- Improved Heat Sink Medium Storage Unit > --- WEAPON ----------- Assault Rifle Light Assault Rifle > --- INVENTORY -------- Light Treads Light Treads Aluminum Leg Aluminum Leg Wheel Compact Wheel Compact Wheel Heat Sink Heat Sink Signal Interpreter [Rating: 10] Favorites ----------- Power Light Nuclear Core Engine Light Ion Engine Power Core Light Nuclear Core Propulsion Aluminum Leg Leg Aluminum Leg Utility Signal Interpreter Device Improved Heat Sink Storage Medium Storage Unit Processor Signal Interpreter Weapon Assault Rifle Energy Gun EM Pulse Gun Ballistic Gun Assault Rifle Build | -11 -10 ------- Run | Yrd Mat Slots Evolved . | . . Power . | . . Propulsion . | . . Utility . | . . Weapon . | . . Parts Attached 21 | 6 15 Power 4 | 1 3 Engine 2 | 1 1 Core 2 | . 2 Reactor . | . . Propulsion 5 | 2 3 Treads . | . . Leg 5 | 2 3 Wheel . | . . Hover . | . . Flight . | . . Utility 7 | 1 6 Device 1 | . 1 Storage 5 | 1 4 Processor 1 | . 1 Hackware . | . . Protection . | . . Artifact . | . . Weapon 5 | 2 3 Energy Gun 2 | 1 1 Energy Cannon . | . . Ballistic Gun 3 | 1 2 Ballistic Cannon . | . . Launcher . | . . Special Weapon . | . . Impact Weapon . | . . Slashing Weapon . | . . Piercing Weapon . | . . Special Melee Weapon . | . . Unidentified Prototypes . | . . Parts Lost 5 | . 5 Power 1 | . 1 Propulsion . | . . Utility . | . . Weapon 4 | . 4 Highest Loss Streak 2 | . 2 To Critical Strikes . | . . Average Slot Usage (%) 95 | . 95 Engine 4 | . 4 Core 8 | . 8 Leg 27 | . 27 Device 2 | . 2 Storage 14 | . 14 Processor 10 | . 10 Energy Gun 1 | . 1 Ballistic Gun 24 | . 24 Peak Build Rating 10 | 6 10 Average Rating 8 | 5 8 On Entrance 3 | . 6 Naked Turns . | . . Heaviest Build 48 | 12 48 Greatest Support 20 | 20 20 Greatest Overweight (x) 2 | . 2 Average Overweight (x) . | . . Largest Inventory Capacity 25 | 8 25 Average Capacity 11 | 7 11 Most Carried 10 | 7 10 Average Carried 8 | 5 8 Final Capacity 20 | 8 20 Final Carried 8 | 7 8 Class Distribution -------------------- 100% | Mutant Dominant Class ---------------- Mutant | -10/Materials Resources | -11 -10 ----------- Run | Yrd Mat Matter Collected 656 | 287 369 Remotely . | . . Salvage Created 663 | 136 527 Parts 36 | 4 32 Haulers Intercepted . | . . Recyclers Shooed . | . . Parts Field Recycled . | . . Retrieved Matter . | . . Parts Self-Destructed . | . . Prevented . | . . Kills | -11 -10 ------- Run | Yrd Mat Combat Hostiles Destroyed 12 | . 12 Guns 12 | . 12 Classes Destroyed 4 | 2 2 Worker 2 | 2 . Recycler 1 | 1 . Watcher 2 | . 2 Grunt 12 | . 12 Best Kill Streak 4 | 2 4 Combat Bots Only 4 | . 4 Max Kills in Single Turn 1 | 1 1 Gunslinging . | . . Exploded . | . . Melee . | . . Uniques/NPCs Destroyed . | . . Combat | -11 -10 -------- Run | Yrd Mat Hostile Shots Fired 104 | . 104 Missed 31 | . 31 Damage Taken 941 | . 941 Core 256 | . 256 Absorbed by Shields . | . . Regen/Repaired (Parts) 16 | . 16 Core Remaining (%) 100 | 100 . Volleys Fired 95 | 9 86 Largest 2 | 2 2 Hottest 60 | 60 60 Shots Fired 169 | 18 151 Gun 169 | 18 151 Cannon . | . . Launcher . | . . Special . | . . Kinetic 142 | 9 133 Thermal 1 | . 1 Explosive . | . . Electromagnetic 26 | 9 17 Robot Hit Streak 11 | 2 11 Robot Miss Streak 4 | 3 4 Penetration Max . | . . Secondary Targets 2 | . 2 Max Gunslinging Chain 1 | . 1 Shots Hit Robots 90 | 8 82 Core Hits 36 | 4 32 Critical Kills . | . . Critical Parts Destroyed . | . . Critical Strikes . | . . Melee Attacks . | . . Impact . | . . Slashing . | . . Piercing . | . . Sneak Attacks . | . . Combat Hostiles . | . . Follow-up Attacks . | . . Damage Inflicted 1066 | 99 967 Guns 1027 | 99 928 Cannons . | . . Explosions 39 | . 39 Melee . | . . Ramming . | . . Kinetic 865 | 72 793 Thermal 50 | . 50 Explosive . | . . Electromagnetic 151 | 27 124 Impact . | . . Slashing . | . . Piercing . | . . Highest Corruption . | . . Average Corruption . | . . Corruption Purged . | . . Corruption Blocked . | . . Overload Shots . | . . Overflow Damage . | . . Projectiles . | . . Explosions . | . . Melee . | . . Knockbacks . | . . Impact . | . . Kinetic . | . . Secondary . | . . Self-Inflicted Damage . | . . Shots . | . . Rammed . | . . Targets Rammed . | . . Kicked . | . . Crushed . | . . Highest Temperature 72 | . 72 Average Temperature 14 | . 14 Received Heat Transfer 528 | . 528 Siege Activations . | . . Robots Corrupted . | . . Combat Hostiles . | . . Parts Fried . | . . Impact Corruptions . | . . Robots Melted . | . . Combat Hostiles . | . . Parts Melted . | . . Heat Transferred 75 | . 75 Parts Sabotaged . | . . Parts Stolen . | . . Parts Stripped . | . . Power Chain Reactions 1 | . 1 Alert | -11 -10 ------- Run | Yrd Mat Peak Influence 227 | 15 227 Initial 9 | . 9 Average 61 | 3 70 Maximum Alert Level 1 | . 1 Low Security (%) 94 | 100 93 Level 1 5 | . 6 Level 2 . | . . Level 3 . | . . Level 4 . | . . Level 5 . | . . High Security . | . . Max Security . | . . Squads Dispatched 2 | . 2 Investigation . | . . Extermination . | . . Reinforcement 2 | . 2 Assault . | . . Garrison . | . . Intercept . | . . Searches Triggered . | . . Construction Impeded . | . . Haulers Reinforced . | . . Active Scanning Responses . | . . Cargo Convoy Interrupts . | . . Stealth | -11 -10 --------- Run | Yrd Mat Distress Signals 3 | . 3 Communications Jammed . | . . Distress Signals . | . . Times Spotted 20 | . 20 Peak Tracking Total 4 | . 4 Tactical Retreats . | . . Traps | -11 -10 ------- Run | Yrd Mat Traps Triggered . | . . Indirectly . | . . Trap Hack Attempts . | . . Triggered . | . . Disarmed . | . . Reprogrammed 4 | . 4 Reused 1 | . 1 Traps Extracted . | . . Installed . | . . Triggered 1 | . 1 Machines | -11 -10 ---------- Run | Yrd Mat Machines Disabled . | . . Max in Single Turn . | . . Machines Repaired . | . . Machines Dismantled . | . . Machines Sabotaged . | . . Overloaded Fab Kills . | . . Hacking | -11 -10 --------- Run | Yrd Mat Machines Accessed 4 | . 4 Terminals 3 | . 3 Fabricators . | . . Repair Stations 1 | . 1 Recycling Units . | . . Scanalyzers . | . . Garrison Access . | . . Total Hacks 11 | . 11 Successful 7 | . 7 Failed 4 | . 4 Catastrophic . | . . Database Lockouts . | . . Manual . | . . Terminals 9 | . 9 Fabricators . | . . Repair Stations 2 | . 2 Recycling Units . | . . Scanalyzers . | . . Garrison Access . | . . Terminal Hacks 5 | . 5 Alert Level 1 | . 1 Unreport Threat 1 | . 1 Reprogram Traps 1 | . 1 Maintenance Status 1 | . 1 Hauler Manifests 1 | . 1 Fabricator Hacks . | . . Repair Station Hacks 2 | . 2 Scan Component 1 | . 1 Repair 1 | . 1 Recycling Unit Hacks . | . . Scanalyzer . | . . Garrison Access Hacks . | . . Unauthorized Hacks . | . . Terminals . | . . Fabricators . | . . Repair Stations . | . . Recycling Units . | . . Scanalyzers . | . . Garrison Access . | . . Data Cores Recovered . | . . Used . | . . Hacking Detections 3 | . 3 Full Trace Events 1 | . 1 Feedback Events . | . . Feedback Blocked . | . . Robot Schematics Acquired . | . . Robots Built . | . . Authchips . | . . Time . | . . Total Robot Build Rating . | . . Part Schematics Acquired . | . . Parts Built . | . . Authchips . | . . Time . | . . Total Part Build Rating . | . . Parts Repaired 1 | . 1 Time 38 | . 38 Parts Recycled . | . . Recycled Matter . | . . Retrieved Matter . | . . Retrieved Components . | . . Parts Scanalyzed . | . . Part Schematics Acquired . | . . Parts Damaged . | . . Bothacking | -11 -10 ------------ Run | Yrd Mat Used RIF Installer . | . . Robots Hacked . | . . Non-combat . | . . Combat . | . . Robot Hacks Applied . | . . Relay Couplers Released . | . . Fabnet Peak Effective % . | . . Robots Rewired . | . . Allies Hacked . | . . Hacks Repelled . | . . Allies | -11 -10 -------- Run | Yrd Mat Total Allies . | . . Largest Group . | . . Highest-Rated Group . | . . Highest-Rated Ally . | . . Total Orders . | . . Ally Attacks . | . . Total Damage . | . . Kills . | . . Allies Corrupted . | . . Allies Melted . | . . Intel | -11 -10 ------- Run | Yrd Mat Robot Analysis Total . | . . Derelict Logs Recovered . | . . Drone Launches . | . . Drone Recoveries . | . . Exploration | -11 -10 ------------- Run | Yrd Mat Turns Passed 934 | 124 810 Spaces Moved 435 | 73 362 Core 12 | 12 . Treads . | . . Legs 423 | 61 362 Wheels . | . . Hover . | . . Flight . | . . Fastest Speed 50 | 50 120 Average Speed 134 | 108 139 Slowest Speed 260 | 120 260 Overloaded Moves . | . . Propulsion Burnouts . | . . Robots Hopped . | . . Cave-ins Triggered . | . . Exploration Rate (%) 31 | 5 57 Regions Visited 1 Branch Regions . Pre-discovered Areas . | . . Known Exits Taken . | . . Unknown Exits Taken 1 | 1 . Scrap Searched . | . . Spaces Dug . | . . Terrain Destroyed . | . . Melee . | . . Projectile . | . . AOE . | . . Terrain Rammed . | . . Walls Destroyed . | . . Machines Disabled . | . . Actions | -11 -10 --------- Run | Yrd Mat Total 629 | 99 530 Wait 38 | . 38 Move 434 | 72 362 Hop . | . . Pick Up 29 | 12 17 Fast Attach 2 | 1 1 Attach 11 | 5 6 Detach . | . . Swap 8 | . 8 Drop 12 | . 12 Fire 95 | 9 86 Melee . | . . Ram . | . . Kick . | . . Crush . | . . Escape Stasis . | . . Rewire . | . . Trap . | . . Miscellaneous . | . . Route ------- -11/Scrapyard -10/Materials (discovered 3 exits: *Mat x3) History --------- Turn | Location | Event 5 | -11/Scrapyard | Discovered new exit (range 15) 125 | -11/Scrapyard | Entered Materials 315 | -10/Materials | Build established: Mutant 318 | -10/Materials | Discovered new exit (range 6) 325 | -10/Materials | Identified exit to Materials 368 | -10/Materials | Core integrity fell below 50% 508 | -10/Materials | Discovered exit to Materials (range 16) 646 | -10/Materials | Repaired Lgt. Nuclear Core 812 | -10/Materials | Discovered exit to Materials (range 4) 885 | -10/Materials | Core integrity fell below 20% 935 | -10/Materials | Destroyed by G-47 Trooper with Particle Gun Last Messages --------------- 00646_ Acquired Lgt. Nuclear Core. 00661_ Dropped Aluminum Leg. 00669_ Acquired Aluminum Leg. 00672_ K-01 Serf cleans the Matter Pump. 00683_ G-34 Mercenary destroyed. 00687_ Acquired 39 matter. 00688_ K-01 Serf cleans the Matter Pump. 00777_ Acquired Hcp. Storage Unit. 00800_ Dropped Med. Storage Unit. 00801_ Dropped Huge Storage Unit. 00812_ EXIT=FOUND: MATERIALS 00854_ Connecting with Terminal... 00870_ W-16 Scout sends out distress signal. 00877_ W-16 Scout destroyed. 00880_ Assault Rifle destroyed. 00882_ G-34 Mercenary destroyed. 00891_ Lgt. Assault Rifle destroyed. 00927_ Acquired 46 matter. 00931_ K-01 Serf cleans the Matter Pump. 00932_ Acquired Sml. Laser. Map ----- +----------------------------------------------------+ | ?????????????????????????????# #??????????? | | ???????????????????#######???# """" #??????????? | | ???????????????????# "T" #???# """" #??????????? | | ???????????????????# #???# """" #??????????? | | ???????????????????# #???# #??????????? | | ???????????????????# """ ##### """" #??????????? | | ???????????????????# """ # # """" #??????????? | | ???????????????????# """ # < # """" #??????????? | | ???????????????????# # # ! #??????????? | | ???????????####+######+### #####+############### | | ???????????#[%= % ! | | ????????" + ^ | | ????????" # """ | | ???????????#+##+######+## ###############^ """ | | ????????????????????????#g #?????????????# """ | | ????????????????????????# #?????????????# | | ????????????????????????# #?????????????# | | ????????????????????????# #?????????????# | | ????????????????????????# #?????????????# | | ????????????????????????# #?????????????# ## | | ????????????????????????# #?????????????# #? | | ????????????????????????# #?????????????# #? | | ????????????????????????# #?????????????# #? | | ????????????????????????#=a #?????????????# #? | | ?????????? ####### = #????????????## ## | | ??????????????# ak@ ###+########## # | | ??????????????# # | | ??????????????# # | | ???????????? # | | ???????????#### """ """ !###### # | | ??????????????## ######### """ """[ #????####### | | ???????????????#?????????# """ """ ############ | | ?????????????????????????# [ ! *[ = | | ?????????????????????????# =k = | | ?????????????????????????# """ """ | | ?????????????????????????# """ """ #######/#### | | ###########??????????????# """ """ ## | | #??????????????# ## ! !!! ^ | | #??????????????# = ## !!^^! | | #??????????????# %*|! ## ^!! | | ####### #??????????????# !|! ## | | ??????# ###????????????# !! =! ####+#####+# | | ??????# # #????????????# ! #??# | | ??????# #????????????# = #### | | ??????# ###????????????# = | | ??????# #??????????????# ################## | | ??????# #??????????????# #????????????????# | | ??????# #??????????????+ #????????????????# | | ??????# #??????????????# #????????????????# | | ??????#% #??????????????# #????????????????# | +----------------------------------------------------+ Best States ------------- Heat Dissipation 39 Energy Generation 14 Energy Capacity 160 Matter Stores 300 Matter Capacity 300 Sight Range 16 Terrain Scan Density 10 Evasion (%) 55 Item Schematics ----------------- None Robot Schematics ------------------ None Fabricated ------------ Nothing Alien Tech Used ----------------- None Achievements -------------- None Challenges ------------ None Game ------ Seed AdvancedCobblerAmplifier Manual? 0 Play Time 00:16:36 Cumulative 3.3 hours Start 2025.01.02 @ 12:37:36 End 2025.01.02 @ 12:57:31 Sessions 1 Manual Loads 0 Difficulty Rogue Special Mode None Game No. 6 Rogue 6 Adventurer 0 Explorer 0 Win Type - Total 0 Types 0/0/0/0/0/0/0/0/0 Lore% 2 Gallery% 7 Achievement% 8 Wizard Run 0 Options --------- Layout 0 ASCII 0 Keyboard 0 Movement Mouse Keybinds 0 Fullscreen 2 Font 24/Smallcaps Map View 76x50 Zoom Use 0% Tactical HUD 1 Map Filters NONE Filters NONE Steam 1 RUN: ae5c6b77-e5e6-450c-b990-8e20ce27a7d1